bitfinex/quotes_SOLUSD_20250908
["timestamp","ask_amount","ask_price","bid_price","bid_amount"]
[1757295564026,38.06,207.03,207.01,0.67]
[1757295564225,38.06,207.03,207.02,0.67]
[1757295564600,42.89021784,207.03,207.0,0.67]
[1757295565099,34.86,207.04,207.01,0.67]
[1757295565298,38.04,207.03,207.01,0.67]
[1757295565737,38.04,207.03,207.02,0.67]
[1757295566609,42.87024502,207.03,207.0,0.67]
[1757295567408,42.87024502,207.03,207.01,0.67]
[1757295567920,38.04,207.03,206.98,3.7847938]
[1757295568127,38.04,207.03,206.99,4.4547938]
[1757295568422,38.02,207.02,207.01,3.7847938]
[1757295568633,38.02,207.02,206.97,4.86154579]
[1757295568805,38.02,207.02,207.01,3.7847938]
[1757295569205,38.02,207.02,207.01,4.4547938]
[1757295569621,38.02,207.02,206.98,26.0]
[1757295569813,38.02,207.02,207.0,3.7847938]
[1757295570124,38.02,207.02,207.0,4.4547938]
[1757295570335,38.02,207.02,207.0,0.67]
[1757295570532,38.02,207.02,207.01,0.67]
[1757295570705,38.02,207.02,206.99,3.7847938]
[1757295571029,42.85048296,207.02,206.98,3.7847938]
[1757295571209,42.85048296,207.02,206.98,4.4547938]
[1757295571408,38.02,207.02,206.98,3.7847938]
[1757295571609,38.02,207.02,206.99,4.4547938]
[1757295572221,38.02,207.02,207.01,3.7847938]
[1757295572404,38.02,207.02,207.01,4.4547938]
[1757295572607,38.02,207.02,207.01,0.67]
[1757295574612,38.02,207.02,207.0,3.7847938]
[1757295574813,38.02,207.02,207.0,4.4547938]
[1757295575025,38.02,207.02,207.01,4.4547938]
[1757295576327,38.02,207.02,207.01,3.7847938]
[1757295576638,38.02,207.02,207.0,3.7847938]
[1757295576806,38.02,207.02,206.99,3.7847938]
[1757295577019,38.02,207.02,206.99,4.4347938]
[1757295578241,0.06,207.03,206.99,4.4347938]
[1757295578442,37.92,207.02,206.99,4.4347938]
[1757295578946,37.92,207.02,206.99,3.7847938]
[1757295579333,37.92,207.02,206.98,3.7847938]
[1757295579637,37.92,207.02,206.99,3.7847938]
[1757295580045,38.57,207.02,206.99,3.7847938]
[1757295580223,38.57,207.02,206.98,3.7847938]
[1757295581143,37.92,207.02,206.98,3.7847938]
[1757295581340,0.65,207.01,206.98,3.7847938]
[1757295581535,37.9,207.0,206.98,3.7847938]
[1757295581737,0.65,206.99,206.97,0.03]
[1757295581935,37.9,206.98,206.97,0.03]
[1757295582445,38.55,206.98,206.97,0.03]
[1757295582640,43.38138467,206.98,206.97,0.03]
[1757295587949,60.76177248,206.98,206.97,0.03]
[1757295590156,62.69708467,206.98,206.97,0.03]
[1757295590659,22.86177248,206.98,206.97,0.03]
[1757295590854,56.97697868,206.98,206.97,0.03]
[1757295591061,60.76177248,206.98,206.97,0.03]
[1757295591659,22.86177248,206.98,206.97,0.03]
[1757295591840,60.76177248,206.98,206.97,0.03]
[1757295592351,59.40057705,206.98,206.97,0.03]
[1757295592545,56.97697868,206.98,206.97,0.03]
[1757295592753,52.14559401,206.98,206.97,0.03]
[1757295593341,0.06,206.99,206.97,0.68]
[1757295593544,0.06,206.99,206.98,2.42359837]
[1757295593745,37.98,206.99,206.98,2.42359837]
[1757295593947,37.98,206.99,206.98,3.07359837]
[1757295594149,37.98,206.99,206.98,7.90498304]
[1757295594658,37.98,206.99,206.98,0.65]
[1757295595065,37.98,206.99,206.98,3.07359837]
[1757295597653,37.98,206.99,206.98,7.90498304]
[1757295598243,37.98,206.99,206.98,3.07359837]
[1757295600869,37.98,206.99,206.98,2.42359837]
[1757295601560,37.98,206.99,206.97,0.03]
[1757295601761,38.63,206.99,206.98,2.42359837]
[1757295601968,37.98,206.99,206.98,2.42359837]
[1757295602454,37.98,206.99,206.98,3.07359837]
[1757295603357,0.06,206.99,206.98,5.7910115]
[1757295603755,0.06,206.99,206.98,10.62239617]
[1757295605175,0.06,206.99,206.98,36.62239617]
[1757295606670,0.06,206.99,206.98,20.31678965]
[1757295607973,0.06,206.99,206.98,10.62239617]
[1757295609073,0.06,207.02,207.01,2.42359837]
[1757295609264,0.06,207.02,207.01,5.1410115]
[1757295610765,0.06,207.02,207.01,9.971696]
[1757295610965,0.06,207.02,207.01,10.671696]
[1757295614589,0.06,207.02,207.01,9.971696]
[1757295615472,0.06,207.02,207.01,10.671696]
[1757295616292,0.06,207.02,207.01,9.971696]
[1757295617081,0.06,207.02,207.01,90.771696]
[1757295623487,0.75,207.02,207.01,87.35428287]
[1757295623685,0.06,207.02,207.01,7.95428287]
[1757295623885,0.06,207.03,207.01,10.66152648]
[1757295624186,0.06,207.03,207.02,5.83084198]
[1757295624387,0.06,207.03,207.02,19.42643599]
[1757295624577,0.06,207.03,207.02,137.40643599]
[1757295624777,0.06,207.04,207.03,2.42359837]
[1757295624971,0.06,207.04,207.03,3.12359837]
[1757295625688,0.06,207.04,207.03,10.65956502]
[1757295625892,0.06,207.04,207.03,24.25515903]
[1757295627691,0.06,207.04,207.03,26.18822657]
[1757295628087,0.06,207.04,207.03,26.1862994]
[1757295629094,0.06,207.04,207.03,106.2862994]
[1757295630584,0.06,207.04,207.03,144.1462994]
[1757295631492,0.06,207.04,207.03,106.2862994]
[1757295631694,0.06,207.04,207.03,144.1462994]
[1757295632598,0.06,207.04,207.03,173.1562994]
[1757295634599,0.06,207.04,207.03,172.4562994]
[1757295634985,0.06,207.04,207.03,134.5962994]
[1757295635293,0.78,207.04,207.03,134.5962994]
[1757295635492,0.78,207.04,207.03,172.4562994]
[1757295635879,0.78,207.04,207.03,91.99070539]
[1757295636080,0.78,207.04,207.03,89.28688375]
[1757295636287,0.78,207.04,207.03,92.0000209]
[1757295637091,0.78,207.04,207.03,9.96695336]
[1757295637401,0.06,207.04,207.03,9.96695336]
[1757295637600,0.78,207.04,207.03,9.96695336]
[1757295638706,0.06,207.04,207.03,9.96695336]
[1757295639089,0.78,207.04,207.03,9.96695336]
[1757295639809,0.78,207.04,207.03,31.13673552]
[1757295641107,0.78,207.04,207.03,28.71313715]
[1757295641312,0.78,207.04,207.03,35.96695336]
[1757295642986,0.06,207.04,207.03,35.96695336]
[1757295643207,0.78,207.04,207.03,35.96695336]
[1757295644309,0.78,207.04,207.03,35.99695336]
[1757295646413,0.06,207.04,207.03,35.99695336]
[1757295646784,0.06,207.04,207.03,116.09695336]
[1757295647386,0.06,207.04,207.03,90.09695336]
[1757295648715,0.06,207.04,207.03,89.60660939]
[1757295648902,0.06,207.04,207.03,90.09695336]
[1757295651698,0.78,207.04,207.03,87.67335499]
[1757295651905,0.78,207.04,207.03,90.09695336]
[1757295652420,0.78,207.04,207.03,91.45391978]
[1757295653817,0.06,207.04,207.03,105.04951379]
[1757295654008,0.06,207.04,207.03,143.54951379]
[1757295654207,0.06,207.04,207.03,145.48258132]
[1757295655615,0.06,207.06,207.05,26.0]
[1757295655917,0.06,207.06,207.05,32.49370194]
[1757295656322,0.06,207.06,207.05,34.42667607]
[1757295657526,0.06,207.06,207.05,39.25642733]
[1757295658820,0.06,207.06,207.05,119.35642733]
[1757295660405,0.06,207.06,207.05,120.01642733]
[1757295660933,0.06,207.06,207.05,119.35642733]
[1757295663023,0.06,207.06,207.05,66.3334532]
[1757295663228,0.06,207.06,207.05,37.3234532]
[1757295664309,0.06,207.06,207.05,37.9834532]
[1757295664509,0.06,207.06,207.05,80.58904721]
[1757295664711,0.06,207.06,207.05,82.52183453]
[1757295666528,0.06,207.07,207.06,42.60559401]
[1757295666529,1e-08,207.07,207.06,42.60559401]
[1757295666734,1e-08,207.07,207.06,87.62929595]
[1757295667036,1e-08,207.07,207.06,92.45881396]
[1757295667211,1e-08,207.07,207.06,94.39150789]
[1757295670523,1e-08,207.07,207.06,174.49150789]
[1757295671930,1e-08,207.09,207.08,68.60559401]
[1757295672235,1e-08,207.09,207.08,83.90929595]
[1757295672416,1e-08,207.09,207.08,84.59929595]
[1757295672617,1e-08,207.09,207.08,86.53180314]
[1757295674036,1e-08,207.09,207.08,86.89028992]
[1757295674242,1e-08,207.09,207.08,91.36085471]
[1757295676039,1e-08,207.09,207.08,87.58028992]
[1757295676244,1e-08,207.09,207.08,91.36085471]
[1757295676743,1e-08,207.09,207.08,86.89028992]
[1757295676951,1e-08,207.09,207.08,90.67085471]
[1757295679742,0.69000001,207.09,207.08,90.67085471]
[1757295680245,0.69000001,207.09,207.08,77.0752607]
[1757295680447,0.69000001,207.09,207.08,39.2852607]
[1757295682135,0.69000001,207.09,207.08,68.2952607]
[1757295682345,0.69000001,207.09,207.08,148.3952607]
[1757295684257,1e-08,207.09,207.08,120.40085471]
[1757295684437,1e-08,207.09,207.08,119.71085471]
[1757295685948,1e-08,207.09,207.08,120.40085471]
[1757295686449,1e-08,207.09,207.08,119.71085471]
[1757295688347,1e-08,207.09,207.08,161.99085471]
[1757295688554,0.69000001,207.09,207.08,199.81085471]
[1757295688750,1e-08,207.09,207.08,199.81085471]
[1757295690959,1e-08,207.09,207.08,161.99085471]
[1757295691154,0.69000001,207.09,207.08,199.81085471]
[1757295691548,0.69000001,207.09,207.08,161.99085471]
[1757295691756,0.69000001,207.09,207.08,199.81085471]
[1757295691949,0.69000001,207.09,207.08,148.3952607]
[1757295692378,0.69000001,207.09,207.08,119.3852607]
[1757295694657,1e-08,207.09,207.08,119.3852607]
[1757295694862,0.69000001,207.09,207.08,119.3852607]
[1757295695961,0.69000001,207.09,207.08,84.79321447]
[1757295696273,0.69000001,207.09,207.08,82.86070728]
[1757295697973,0.69000001,207.09,207.08,2.76070728]
[1757295698168,5.51881839,207.09,207.08,0.03]
[1757295698350,0.69000001,207.09,207.08,0.03]
[1757295698549,0.66000001,207.09,207.08,3.81056479]
[1757295698752,1e-08,207.09,207.08,54.67814858]
[1757295699168,1e-08,207.09,207.08,56.61065577]
[1757295699565,1e-08,207.09,207.08,95.63849683]
[1757295700892,1e-08,207.09,207.08,91.85793204]
[1757295701077,1e-08,207.09,207.08,94.93849683]
[1757295701975,1e-08,207.09,207.08,57.11849683]
[1757295703488,1e-08,207.09,207.08,57.81849683]
[1757295703854,1e-08,207.09,207.08,57.11849683]
[1757295706779,0.66000001,207.09,207.08,57.11849683]
[1757295706975,0.66000001,207.09,207.08,10.73233803]
[1757295707166,0.66000001,207.09,207.08,12.58039563]
[1757295707366,0.66000001,207.09,207.08,14.51318296]
[1757295708783,0.66000001,207.09,207.08,12.58039563]
[1757295708966,0.66000001,207.09,207.08,92.68039563]
[1757295712172,1e-08,207.09,207.08,55.88598964]
[1757295712482,0.06,207.12,207.1,68.60559401]
[1757295712670,0.06,207.12,207.11,36.73134406]
[1757295712987,0.06,207.12,207.11,37.43134406]
[1757295713180,0.06,207.12,207.11,35.58291307]
[1757295713386,0.06,207.12,207.11,52.25882479]
[1757295713973,0.06,207.14,207.13,26.0]
[1757295714170,0.06,207.14,207.13,38.54898284]
[1757295714378,0.06,207.14,207.13,37.18532151]
[1757295714594,0.06,207.14,207.13,51.67702501]
[1757295715880,21.95279292,207.23,207.13,51.67702501]
[1757295715881,0.66,207.21,207.13,107.05233369]
[1757295716092,0.66,207.21,207.2,7.24315828]
[1757295716270,0.66,207.21,207.2,11.18369047]
[1757295716782,0.66,207.21,207.2,25.67189465]
[1757295718392,0.66,207.21,207.2,3.94053219]
[1757295718892,0.66,207.21,207.2,6.35743565]
[1757295719101,21.95279292,207.23,207.22,26.0]
[1757295719396,45.04101448,207.3,207.23,26.0]
[1757295719900,0.66,207.29,207.23,26.0]
[1757295720197,0.66,207.28,207.23,26.0]
[1757295720376,0.66,207.27,207.23,26.0]
[1757295720574,0.66,207.26,207.23,26.0]
[1757295720899,0.66,207.25,207.23,26.0]
[1757295721077,44.56101448,207.3,207.23,26.0]
[1757295721276,0.66,207.24,207.23,26.0]
[1757295721484,0.66,207.24,207.23,30.8254729]
[1757295721797,0.66,207.24,207.23,28.41690346]
[1757295722900,0.66,207.24,207.2,2.41690346]
[1757295723191,0.66,207.23,207.21,26.0]
[1757295723405,0.66,207.22,207.21,26.0]
[1757295724969,0.66,207.22,207.21,28.41690346]
[1757295726497,0.66,207.22,207.19,4.82550688]
[1757295726697,0.66,207.21,207.19,4.82550688]
[1757295727006,0.66,207.2,207.19,4.82550688]
[1757295727211,0.66,207.2,207.18,2.41690346]
[1757295727413,4.82555614,207.23,207.19,26.0]
[1757295727715,4.82532329,207.24,207.19,28.41690346]
[1757295728002,0.66,207.23,207.19,26.0]
[1757295728204,0.66,207.22,207.17,2.41690346]
[1757295728411,0.66,207.21,207.17,2.41690346]
[1757295728615,0.66,207.2,207.18,26.0]
[1757295728819,0.66,207.19,207.18,26.0]
[1757295729012,0.66,207.19,207.18,28.41690346]
[1757295729710,0.66,207.22,207.18,33.2434548]
[1757295729911,0.66,207.26,207.23,26.0]
[1757295730105,0.66,207.26,207.25,2.41690346]
[1757295731196,37.82,207.3,207.25,2.41690346]
[1757295731493,0.66,207.28,207.27,26.0]
[1757295731894,0.66,207.33,207.27,28.41690346]
[1757295732298,0.66,207.32,207.3,2.41690346]
[1757295734501,0.66,207.31,207.29,2.41690346]
[1757295735000,0.66,207.31,207.3,2.41690346]
[1757295736294,0.66,207.31,207.29,2.41690346]
[1757295736501,0.66,207.3,207.28,2.41690346]
[1757295736814,0.66,207.29,207.27,80.1]
[1757295737002,0.66,207.28,207.27,80.1]
[1757295737323,0.66,207.28,207.26,28.41690346]
[1757295737623,0.66,207.27,207.26,28.41690346]
[1757295737823,4.82349806,207.32,207.26,28.41690346]
[1757295737824,38.5,207.29,207.26,28.41690346]
[1757295738002,37.84,207.29,207.27,2.41690346]
[1757295738202,0.66,207.28,207.27,2.41690346]
[1757295738825,0.66,207.28,207.26,28.41690346]
[1757295739024,0.66,207.32,207.27,2.41690346]
[1757295739209,0.66,207.31,207.29,2.41690346]
[1757295740608,37.92,207.33,207.3,2.41690346]
[1757295740800,38.58,207.33,207.31,2.41690346]
[1757295741912,0.72,207.33,207.31,2.41690346]
[1757295742114,37.92,207.33,207.32,2.41690346]
[1757295742322,0.06,207.33,207.32,2.41690346]
[1757295742826,0.06,207.33,207.32,3.12690346]
[1757295743008,0.06,207.33,207.32,29.12690346]
[1757295743615,0.06,207.33,207.32,3.12690346]
[1757295743817,0.66,207.46,207.33,13.59559401]
[1757295744124,0.66,207.46,207.44,2.41690346]
[1757295744336,0.66,207.46,207.4,26.0]
[1757295744630,0.66,207.49,207.45,2.41690346]
[1757295744834,0.66,207.49,207.46,2.41690346]
[1757295745323,45.17599282,207.51,207.41,14.4721291]
[1757295745534,0.66,207.49,207.45,2.41690346]
[1757295745833,0.66,207.48,207.45,2.41690346]
[1757295746513,0.66,207.47,207.45,2.41690346]
[1757295747224,0.66,207.47,207.44,26.0]
[1757295747432,0.66,207.47,207.45,2.41690346]
[1757295747611,0.66,207.47,207.44,26.0]
[1757295747812,0.66,207.47,207.45,2.41690346]
[1757295748305,0.66,207.46,207.39,29.01]
[1757295748510,0.66,207.46,207.43,2.41690346]
[1757295748727,0.66,207.45,207.43,2.41690346]
[1757295749928,0.66,207.47,207.44,2.41690346]
[1757295750231,0.66,207.46,207.44,2.41690346]
[1757295750614,5.48030147,207.46,207.44,2.41690346]
[1757295750819,0.66,207.46,207.44,2.41690346]
[1757295751015,38.58,207.45,207.34,5.52954531]
[1757295751217,2.41690346,207.43,207.36,2.41690346]
[1757295751527,37.92,207.45,207.3,38.67761384]
[1757295751528,2.41690346,207.39,207.33,28.41690346]
[1757295751728,3.07690346,207.39,207.33,2.41690346]
[1757295751927,0.66,207.39,207.34,2.41690346]
[1757295752128,0.66,207.38,207.34,2.41690346]
[1757295752324,3.07690346,207.38,207.33,26.0]
[1757295752524,0.66,207.37,207.33,26.0]
[1757295752827,3.07690346,207.36,207.3,31.42690346]
[1757295753133,3.07690346,207.36,207.3,2.41690346]
[1757295753512,3.07690346,207.36,207.3,28.41690346]
[1757295754115,3.07690346,207.36,207.3,26.0]
[1757295754425,4.82276344,207.35,207.3,28.41690346]
[1757295754629,5.48276344,207.35,207.3,28.41690346]
[1757295754819,0.66,207.35,207.3,29.12690346]
[1757295755843,2.41690346,207.36,207.3,28.41690346]
[1757295756034,2.41690346,207.36,207.31,0.69]
[1757295756327,3.10690346,207.36,207.31,0.69]
[1757295756634,3.10690346,207.36,207.3,26.69]
[1757295756836,37.98,207.39,207.33,2.41690346]
[1757295757043,0.69,207.42,207.36,26.0]
[1757295757328,2.41690346,207.41,207.36,26.0]
[1757295757535,2.41690346,207.41,207.35,28.41690346]
[1757295757722,2.41690346,207.41,207.35,29.10690346]
[1757295758410,4.8214973,207.41,207.36,2.41690346]
[1757295758605,5.5114973,207.41,207.36,2.41690346]
[1757295759026,2.41690346,207.39,207.33,2.41690346]
[1757295759232,3.10690346,207.39,207.33,2.41690346]
[1757295759435,3.10690346,207.39,207.32,26.0]
[1757295759636,3.10690346,207.39,207.33,2.41690346]
[1757295760433,7.92886792,207.39,207.33,2.41690346]
[1757295761019,7.23886792,207.39,207.33,2.41690346]
[1757295761224,0.69,207.38,207.33,2.41690346]
[1757295761422,0.69,207.37,207.33,2.41690346]
[1757295761840,3.10690346,207.36,207.3,2.41690346]
[1757295762420,4.82276344,207.35,207.3,2.41690346]
[1757295762739,5.51276344,207.35,207.3,2.41690346]
[1757295763417,0.69,207.35,207.3,2.41690346]
[1757295763622,0.69,207.35,207.31,2.41690346]
[1757295764537,4.82299604,207.34,207.31,2.41690346]
[1757295764835,5.51299604,207.34,207.31,2.41690346]
[1757295765013,5.51299604,207.34,207.29,80.13]
[1757295765014,0.69,207.34,207.3,2.41690346]
[1757295765330,37.98,207.44,207.29,82.54690346]
[1757295765331,0.69,207.33,207.29,82.54690346]
[1757295766838,5.51325506,207.33,207.29,82.54690346]
[1757295767016,12.05363489,207.41,207.3,2.41690346]
[1757295767213,0.69,207.35,207.32,2.41690346]
[1757295767440,0.69,207.34,207.31,2.41690346]
[1757295768028,0.69,207.41,207.33,2.41690346]
[1757295768228,0.69,207.41,207.34,0.69]
[1757295768545,0.69,207.41,207.37,2.41690346]
[1757295768761,0.69,207.4,207.37,2.41690346]
[1757295771241,0.69,207.4,207.34,31.51297949]
[1757295771438,5.51165897,207.4,207.36,2.41690346]
[1757295771632,0.69,207.39,207.36,2.41690346]
[1757295772341,0.69,207.38,207.36,0.5]
[1757295773939,0.69,207.38,207.35,2.41690346]
[1757295774326,5.51212508,207.38,207.35,2.41690346]
[1757295774534,0.69,207.37,207.34,2.41690346]
[1757295774725,2.41690346,207.42,207.36,2.41690346]
[1757295775347,2.41690346,207.4,207.34,2.41690346]
[1757295775644,0.69,207.39,207.34,2.41690346]
[1757295775848,0.69,207.38,207.34,2.41690346]
[1757295776038,0.69,207.38,207.32,80.1]
[1757295776346,0.69,207.37,207.32,3.77067301]
[1757295776545,0.69,207.36,207.33,3.77067301]
[1757295777720,0.69,207.36,207.32,3.77067301]
[1757295778143,3.77067301,207.34,207.29,80.13]
[1757295778347,0.69,207.35,207.3,2.69518252]
[1757295778348,0.69,207.33,207.3,2.69518252]
[1757295778532,4.46067301,207.35,207.29,83.90067301]
[1757295778741,0.69,207.35,207.3,3.77067301]
[1757295779035,3.77067301,207.36,207.3,3.77067301]
[1757295779036,0.69,207.34,207.3,3.77067301]
[1757295779229,0.69,207.34,207.29,83.90067301]
[1757295779426,0.69,207.34,207.29,84.59067301]
[1757295780452,3.77067301,207.35,207.29,83.90067301]
[1757295780636,0.69,207.33,207.29,80.13]
[1757295781353,0.69,207.33,207.29,83.90067301]
[1757295782457,0.69,207.32,207.29,0.03]
[1757295782624,3.77067301,207.3,207.29,0.03]
[1757295783252,4.46067301,207.3,207.29,0.03]
[1757295784624,0.69,207.3,207.29,0.03]
[1757295784945,3.77067301,207.31,207.29,0.03]
[1757295785246,4.43067301,207.33,207.29,0.03]
[1757295785420,3.77067301,207.4,207.29,3.80067301]
[1757295785626,4.43067301,207.36,207.29,4.51067301]
[1757295786233,4.43067301,207.35,207.29,3.80067301]
[1757295786431,4.43067301,207.34,207.29,0.03]
[1757295786830,0.66,207.33,207.29,0.03]
[1757295787139,4.43067301,207.33,207.29,0.03]
[1757295787341,0.66,207.32,207.3,26.0]
[1757295788334,0.66,207.31,207.3,26.0]
[1757295789051,0.66,207.31,207.29,26.03]
[1757295792453,5.48377807,207.31,207.29,0.03]
[1757295792753,0.66,207.3,207.29,0.03]
[1757295797459,38.48,207.32,207.29,0.03]
[1757295797644,0.66,207.31,207.29,0.03]
[1757295799746,0.66,207.3,207.29,0.03]
[1757295801138,4.43067301,207.3,207.29,0.03]
[1757295801343,0.72,207.35,207.3,4.82392667]
[1757295801552,37.8,207.34,207.31,3.77067301]
[1757295801753,0.66,207.33,207.3,8.59459968]
[1757295801939,37.8,207.34,207.3,8.59459968]
[1757295802342,0.66,207.33,207.3,8.59459968]
[1757295802542,37.8,207.34,207.29,0.03]
[1757295802862,0.66,207.32,207.29,0.03]
[1757295803261,0.66,207.31,207.29,0.03]
[1757295803863,8.59396627,207.33,207.29,0.03]
[1757295804070,3.77067301,207.32,207.29,0.03]
[1757295804249,0.66,207.31,207.29,0.03]
[1757295804948,37.8,207.34,207.3,30.48067301]
[1757295805149,37.8,207.34,207.31,4.48067301]
[1757295805460,37.8,207.34,207.31,9.30431805]
[1757295806164,37.8,207.34,207.31,5.53364504]
[1757295806358,0.66,207.33,207.29,0.03]
[1757295806555,4.43067301,207.33,207.29,0.03]
[1757295806865,0.66,207.32,207.3,26.0]
[1757295809266,0.66,207.32,207.29,26.03]
[1757295809956,0.66,207.32,207.29,4.85414941]
[1757295810454,0.66,207.32,207.29,26.03]
[1757295811365,0.66,207.31,207.29,26.03]
[1757295812065,38.46,207.3,207.29,0.03]
[1757295812365,42.23067301,207.3,207.29,0.03]
[1757295812865,38.46,207.3,207.29,0.03]
[1757295813474,42.23067301,207.3,207.29,0.03]
[1757295814565,47.05459968,207.3,207.29,0.03]
[1757295814942,60.65019369,207.3,207.29,0.03]
[1757295818957,64.4208667,207.3,207.29,0.03]
[1757295820476,66.35309383,207.3,207.29,0.03]
[1757295821173,13.59559401,207.29,207.26,0.03]
[1757295821373,3.77067301,207.27,207.26,0.03]
[1757295821770,4.47067301,207.27,207.26,0.03]
[1757295822164,9.29529789,207.27,207.26,0.03]
[1757295823181,41.57067301,207.27,207.26,0.03]
[1757295824283,43.32462488,207.27,207.26,0.03]
[1757295824579,47.09529789,207.27,207.26,0.03]
[1757295830395,60.6908919,207.27,207.26,0.03]
[1757295836284,59.33702541,207.27,207.26,0.03]
[1757295839392,59.33702541,207.27,207.24,0.03]
[1757295839393,13.59559401,207.26,207.24,0.03]
[1757295839595,40.21680652,207.25,207.24,0.03]
[1757295839805,40.91680652,207.25,207.24,0.03]
[1757295840498,13.59559401,207.24,207.23,0.03]
[1757295840695,26.0,207.21,207.2,0.03]
[1757295840897,26.0,207.21,207.1,0.1]
[1757295840898,13.59559401,207.2,207.1,0.1]
[1757295841102,13.59559401,207.2,207.12,0.7]
[1757295841103,53.81240053,207.19,207.12,0.7]
[1757295841611,54.51240053,207.19,207.12,0.7]
[1757295842908,59.33888829,207.19,207.12,0.7]
[1757295843804,21.53888829,207.19,207.12,0.7]
[1757295844006,21.53888829,207.19,207.1,4.92851918]
[1757295844206,59.33888829,207.19,207.13,0.7]
[1757295844795,59.33888829,207.19,207.1,0.1]
[1757295845000,59.33888829,207.19,207.12,0.7]
[1757295845610,59.33888829,207.19,207.15,0.03]
[1757295845919,21.53888829,207.19,207.15,0.03]
[1757295846103,59.33888829,207.19,207.15,0.03]
[1757295847095,56.92208177,207.19,207.15,0.03]
[1757295847294,59.33888829,207.19,207.15,0.03]
[1757295847519,21.53888829,207.19,207.15,0.03]
[1757295847706,59.33888829,207.19,207.15,0.03]
[1757295851122,21.53888829,207.19,207.15,0.03]
[1757295851305,59.33888829,207.19,207.15,0.03]
[1757295851509,16.01240053,207.16,207.15,0.03]
[1757295851820,53.81240053,207.16,207.15,0.03]
[1757295853507,58.63958724,207.16,207.15,0.03]
[1757295861911,40.21680652,207.16,207.15,0.74]
[1757295862602,40.21680652,207.16,207.15,0.03]
[1757295865008,45.04399323,207.16,207.15,0.03]
[1757295866229,40.21680652,207.16,207.15,0.74]
[1757295866430,0.06,207.18,207.15,0.74]
[1757295866619,2.41680652,207.16,207.15,0.74]
[1757295867214,2.41680652,207.16,207.15,0.03]
[1757295868833,2.41680652,207.16,207.15,0.74]
[1757295869038,6.75986866,207.17,207.15,0.74]
[1757295869212,37.8,207.16,207.15,0.74]
[1757295869412,37.8,207.16,207.15,0.03]
[1757295869923,1.93288072,207.17,207.15,0.03]
[1757295870120,0.06,207.18,207.15,0.74]
[1757295870334,37.8,207.17,207.15,3.15680652]
[1757295870538,37.8,207.17,207.16,0.71]
[1757295875644,37.8,207.17,207.15,0.03]
[1757295875938,37.8,207.17,207.15,0.72]
[1757295877543,37.8,207.17,207.15,0.03]
[1757295879039,37.8,207.17,207.15,0.72]
[1757295880348,37.8,207.17,207.15,3.43249287]
[1757295881055,37.8,207.17,207.15,2.74249287]
[1757295881938,37.8,207.17,207.15,0.03]
[1757295882131,37.8,207.17,207.15,2.74343251]
[1757295882331,37.8,207.17,207.15,0.03]
[1757295882539,38.48,207.17,207.15,0.03]
[1757295884445,38.48,207.17,207.16,2.71723122]
[1757295887155,37.8,207.17,207.16,2.71723122]
[1757295887532,38.48,207.17,207.15,0.03]
[1757295887736,0.68,207.16,207.15,0.03]
[1757295889360,5.50718671,207.16,207.15,0.03]
[1757295889862,43.26718671,207.16,207.15,0.03]
[1757295890536,45.68399323,207.16,207.15,0.03]
[1757295891136,47.61715419,207.16,207.15,0.03]
[1757295891334,61.2127482,207.16,207.15,0.03]
[1757295894043,23.4527482,207.16,207.15,0.03]
[1757295894244,61.2127482,207.16,207.15,0.03]
[1757295896370,62.57546891,207.16,207.15,0.03]